fUSD/lending_fUSD_20250716
["ID","MTS","AMOUNT","RATE_DAILY","PERIOD"]
[372503235,1752663162444,-2065.11,0.0002315,2]
[372503236,1752663162454,-5953.02,0.0002315,2]
[372503237,1752663162463,-3212.42,0.0002315,2]
[372503238,1752663162473,-21344.53,0.0002315,2]
[372503239,1752663162483,-1014.23,0.0002315,2]
[372503240,1752663162493,-5650.16,0.0002315,2]
[372503241,1752663162502,-476.32,0.0002315,2]
[372503242,1752663162512,-2587.67,0.0002315,2]
[372503243,1752663162522,-5415.43,0.0002315,2]
[372503244,1752663162531,-4486.27,0.0002315,2]
[372503245,1752663162541,-1011.46,0.0002315,2]
[372503246,1752663162551,-635.25,0.0002315,2]
[372503247,1752663162560,-1538.9,0.0002315,2]
[372503248,1752663162571,-2685.11,0.0002315,2]
[372503249,1752663162580,-2744.51,0.0002315,2]
[372503250,1752663162590,-1047.77,0.0002315,2]
[372503251,1752663162600,-460.0,0.0002315,2]
[372503252,1752663162609,-802.61,0.0002315,2]
[372503253,1752663162619,-1189.82,0.0002315,2]
[372503254,1752663162628,-460.0,0.0002315,2]
[372503255,1752663162638,-573.37,0.0002315,2]
[372503256,1752663162648,-8020.77,0.0002315,2]
[372503257,1752663162658,-5279.75,0.0002315,2]
[372503258,1752663162668,-1356.57,0.0002315,2]
[372503259,1752663162919,-1204.94,0.0002315,2]
[372503260,1752663162931,-241.74209109,0.0002315,2]
[372503261,1752663162942,-32484.29,0.0002315,2]
[372503262,1752663162952,-1007.81,0.0002315,2]
[372503263,1752663162962,-504.66,0.0002315,2]
[372503264,1752663162972,-676.02,0.0002315,2]
[372503265,1752663162982,-3572.47,0.0002315,2]
[372503266,1752663162991,-460.0,0.0002315,2]
[372503267,1752663163002,-460.0,0.0002315,2]
[372503268,1752663163012,-460.0,0.0002315,2]
[372503269,1752663163022,-1061.14,0.0002315,2]
[372503270,1752663163033,-19195.94,0.0002315,2]
[372503271,1752663163043,-684.08,0.0002315,2]
[372503272,1752663163054,-14730.83,0.0002315,2]
[372503273,1752663163063,-3262.8,0.0002315,2]
[372503274,1752663163074,-460.0,0.0002315,2]
[372503275,1752663163084,-612.3,0.0002315,2]
[372503276,1752663163094,-1225.77,0.0002315,2]
[372503277,1752663163104,-1692.42,0.0002315,2]
[372503278,1752663163114,-5682.68,0.0002315,2]
[372503279,1752663163125,-3566.5,0.0002315,2]
[372503280,1752663163134,-460.0,0.0002315,2]
[372503281,1752663163144,-249.35581894,0.0002315,2]
[372503282,1752663163154,-628.29,0.0002315,2]
[372503283,1752663163164,-22442.02,0.0002315,2]
[372503284,1752663163174,-3509.68,0.0002315,2]
[372503285,1752663163185,-460.0,0.0002315,2]
[372503286,1752663163195,-686.39,0.0002315,2]
[372503287,1752663163206,-1807.34,0.0002315,2]
[372503288,1752663163218,-460.0,0.0002315,2]
[372503289,1752663163227,-1598.24,0.0002315,2]
[372503290,1752663163235,-460.0,0.0002315,2]
[372503291,1752663163246,-4110.38,0.0002315,2]
[372503292,1752663163258,-1745.31,0.0002315,2]
[372503293,1752663163269,-949.55,0.0002315,2]
[372503294,1752663163280,-1841.85,0.0002315,2]
[372503295,1752663163293,-2472.8,0.0002315,2]
[372503296,1752663163305,-4959.45,0.0002315,2]
[372503297,1752663163317,-3547.98,0.0002315,2]
[372503298,1752663163326,-58694.54,0.0002315,2]
[372503299,1752663163337,-280.08512356,0.0002315,2]
[372503300,1752663163348,-2993.43,0.0002315,2]
[372503301,1752663163358,-5628.71,0.0002315,2]
[372503302,1752663163369,-1447.83,0.0002315,2]
[372503303,1752663163381,-460.0,0.0002315,2]
[372503304,1752663163391,-603.39,0.0002315,2]
[372503305,1752663163401,-1683.09,0.0002315,2]
[372503306,1752663163411,-1096.81,0.0002315,2]
[372503307,1752663163422,-2285.96,0.0002315,2]
[372503308,1752663163432,-483.36,0.0002315,2]
[372503309,1752663163442,-460.0,0.0002315,2]
[372503310,1752663163452,-1319.97,0.0002315,2]
[372503311,1752663163462,-5147.01,0.0002315,2]
[372503312,1752663163472,-1144.35,0.0002315,2]
[372503313,1752663163483,-8010.56,0.0002315,2]
[372503314,1752663163493,-639.1,0.0002315,2]
[372503315,1752663163503,-739.23,0.0002315,2]
[372503316,1752663163513,-460.0,0.0002315,2]
[372503317,1752663163523,-6205.36,0.0002315,2]
[372503318,1752663163532,-510.71,0.0002315,2]
[372503319,1752663163542,-2249.11,0.0002315,2]
[372503320,1752663163552,-440.19590201,0.0002315,2]
[372503321,1752663163562,-4164.71,0.0002315,2]
[372503322,1752663163572,-6769.38,0.0002315,2]
[372503323,1752663163582,-2022.49,0.0002315,2]
[372503324,1752663163592,-1115.74,0.0002315,2]
[372503325,1752663163602,-460.0,0.0002315,2]
[372503326,1752663163612,-460.0,0.0002315,2]
[372503327,1752663163622,-795.42,0.0002315,2]
[372503328,1752663163632,-485.08,0.0002315,2]
[372503329,1752663163642,-2986.83,0.0002315,2]
[372503330,1752663163652,-460.0,0.0002315,2]
[372503331,1752663163663,-830.15,0.0002315,2]
[372503332,1752663163674,-619.04,0.0002315,2]
[372503333,1752663163685,-1181.41,0.0002315,2]
[372503334,1752663163696,-3400.85,0.0002315,2]
[372503335,1752663163706,-1807.42,0.0002315,2]
[372503336,1752663163716,-460.0,0.0002315,2]
[372503337,1752663163726,-460.0,0.0002315,2]
[372503338,1752663163735,-2724.38,0.0002315,2]
[372503339,1752663163745,-135275.72,0.0002315,2]
[372503340,1752663163754,-1356.39,0.0002315,2]
[372503341,1752663163765,-3360.53,0.0002315,2]
[372503342,1752663163776,-4311.63,0.0002315,2]
[372503343,1752663163786,-1607.81,0.0002315,2]
[372503344,1752663163797,-469.05,0.0002315,2]
[372503345,1752663163806,-878.69,0.0002315,2]
[372503346,1752663163816,-1218.65,0.0002315,2]
[372503347,1752663163826,-7249.88,0.0002315,2]
[372503348,1752663163836,-10952.53,0.0002315,2]
[372503349,1752663163847,-908.48,0.0002315,2]
[372503350,1752663163858,-2188.41,0.0002315,2]
[372503351,1752663163871,-1585.43,0.0002315,2]
[372503352,1752663163883,-460.0,0.0002315,2]
[372503353,1752663163893,-6933.38,0.0002315,2]
[372503354,1752663163903,-7163.36,0.0002315,2]
[372503355,1752663163913,-460.0,0.0002315,2]
[372503356,1752663163923,-460.0,0.0002315,2]
[372503357,1752663163934,-13647.01,0.0002315,2]
[372503358,1752663163944,-6833.92,0.0002315,2]
[372503359,1752663163954,-5595.33,0.0002315,2]
[372503360,1752663163964,-2582.73,0.0002315,2]
[372503361,1752663163974,-8217.22,0.0002315,2]
[372503362,1752663163985,-4826.81,0.0002315,2]
[372503363,1752663163995,-1673.31,0.0002315,2]
[372503364,1752663164005,-743.27,0.0002315,2]
[372503365,1752663164014,-1251.22,0.0002315,2]
[372503366,1752663164024,-6145.91,0.0002315,2]
[372503367,1752663164035,-1655.82,0.0002315,2]
[372503368,1752663164045,-3760.87,0.0002315,2]
[372503369,1752663164055,-589.02,0.0002315,2]
[372503370,1752663164066,-460.0,0.0002315,2]
[372503371,1752663164076,-4288.94,0.0002315,2]
[372503372,1752663164086,-1267.17,0.0002315,2]
[372503373,1752663164095,-13788.05,0.0002315,2]
[372503374,1752663164105,-1974.88,0.0002315,2]
[372503375,1752663164115,-7127.48,0.0002315,2]
[372503376,1752663164126,-5381.58,0.0002315,2]
[372503377,1752663164136,-1882.82,0.0002315,2]
[372503378,1752663164146,-464.21,0.0002315,2]
[372503379,1752663164156,-1745.67,0.0002315,2]
[372503380,1752663164167,-2017.87,0.0002315,2]
[372503381,1752663164177,-6507.01,0.0002315,2]
[372503382,1752663164188,-2383.17,0.0002315,2]
[372503383,1752663164199,-460.0,0.0002315,2]
[372503384,1752663164209,-7346.25,0.0002315,2]
[372503385,1752663164221,-16919.72,0.0002315,2]
[372503386,1752663164231,-460.0,0.0002315,2]
[372503387,1752663164241,-460.0,0.0002315,2]
[372503388,1752663164250,-1542.47,0.0002315,2]
[372503389,1752663164261,-3978.63,0.0002315,2]
[372503390,1752663164271,-480.26,0.0002315,2]
[372503391,1752663164280,-925.97,0.0002315,2]
[372503392,1752663164292,-10810.3,0.0002315,2]
[372503393,1752663164302,-612.19,0.0002315,2]
[372503394,1752663164311,-1020.48,0.0002315,2]
[372503395,1752663164321,-1531.25,0.0002315,2]
[372503396,1752663164331,-4266.26,0.0002315,2]
[372503397,1752663164341,-2510.73,0.0002315,2]
[372503398,1752663164351,-460.0,0.0002315,2]
[372503399,1752663164361,-460.0,0.0002315,2]
[372503400,1752663164371,-2857.59,0.0002315,2]
[372503401,1752663164381,-1572.04,0.0002315,2]
[372503402,1752663164390,-500.0,0.0002315,2]
[372503403,1752663164400,-423.74474288,0.0002315,2]
[372503404,1752663164410,-713.88914981,0.00023168,2]
[372503405,1752663164420,-1582.42146296,0.00023168,2]
[372503406,1752663164430,-645.71928935,0.00023168,2]
[372503407,1752663164441,-1500.0,0.00023168,2]
[372503408,1752663164450,-1121.83593279,0.00023168,2]
[372503409,1752663164460,-1500.0,0.00023168,2]
[372503410,1752663164471,-502.09925177,0.00023168,2]
[372503411,1752663164480,-1500.0,0.00023168,2]
[372503412,1752663164490,-1500.0,0.00023168,2]
[372503413,1752663164500,-1000.0,0.00023183,2]
[372503414,1752663164510,-47533.37155827,0.000232,2]
[372503415,1752663164520,-2648.00514245,0.0002321,2]
[372503416,1752663164530,-4024.61,0.00023227,2]
[372503417,1752663164540,-152.0,0.00023266,4]
[372503418,1752663164550,-1500.0,0.00023268,2]
[372503419,1752663164561,-817.50776377,0.00023268,2]
[372503420,1752663164573,-1500.0,0.00023268,2]
[372503421,1752663164584,-1257.78200073,0.00023268,2]
[372503422,1752663164594,-168.0,0.00023284,2]
[372503423,1752663164605,-500.0,0.00023286,2]
[372503424,1752663164614,-7642.11,0.00023286,4]
[372503425,1752663164624,-580.0,0.00023287,2]
[372503426,1752663164634,-1607.01,0.00023287,2]
[372503427,1752663164645,-1539.29,0.00023287,2]
[372503428,1752663164655,-460.0,0.00023287,2]
[372503429,1752663164665,-460.0,0.00023287,2]
[372503430,1752663164675,-460.0,0.00023287,2]
[372503431,1752663164687,-519.13,0.00023287,2]
[372503432,1752663164698,-460.0,0.00023287,2]
[372503433,1752663164707,-676.6,0.00023287,2]
[372503434,1752663164715,-460.0,0.00023287,2]
[372503435,1752663164725,-460.0,0.00023287,2]
[372503436,1752663164736,-233.30811367,0.00023287,2]
[372503437,1752663164746,-505.45,0.00023287,2]
[372503438,1752663164755,-765.61,0.00023287,2]
[372503439,1752663164764,-522.62,0.00023287,2]
[372503440,1752663164774,-460.0,0.00023287,2]
[372503441,1752663164784,-538.58,0.00023287,2]
[372503442,1752663164795,-460.0,0.00023287,2]
[372503443,1752663164805,-460.0,0.00023287,2]
[372503444,1752663164814,-1585.06,0.00023287,2]
[372503445,1752663164824,-924.61,0.00023287,2]
[372503446,1752663164833,-609.32,0.00023287,2]
[372503447,1752663164843,-694.23,0.00023287,2]
[372503448,1752663164853,-832.33,0.00023287,2]
[372503449,1752663164863,-832.33,0.00023287,2]
[372503450,1752663164873,-983.47,0.00023287,2]
[372503451,1752663164883,-460.0,0.00023287,2]
[372503452,1752663164894,-597.48,0.00023287,2]
[372503453,1752663164903,-935.9,0.00023287,2]
[372503454,1752663164913,-891.24,0.00023287,2]
[372503455,1752663164922,-644.94,0.00023287,2]
[372503456,1752663164932,-954.44,0.00023287,2]
[372503457,1752663164942,-460.0,0.00023287,2]
[372503458,1752663164951,-731.16,0.00023287,2]
[372503459,1752663164961,-833.42,0.00023287,2]
[372503460,1752663164971,-523.46,0.00023287,2]
[372503461,1752663164981,-460.0,0.00023287,2]
[372503462,1752663164991,-500.0,0.00023287,5]
[372503463,1752663165001,-460.0,0.00023287,2]
[372503464,1752663165011,-460.0,0.00023287,2]
[372503465,1752663165021,-774.89,0.00023287,2]
[372503466,1752663165031,-488.59,0.00023287,2]
[372503467,1752663165040,-518.16,0.00023287,2]
[372503468,1752663165049,-460.0,0.00023287,2]
[372503469,1752663165059,-460.0,0.00023287,2]
[372503470,1752663165069,-876.74,0.00023287,2]
[372503471,1752663165080,-1277.44,0.00023287,2]
[372503472,1752663165091,-460.0,0.00023287,2]
[372503473,1752663165102,-737.68,0.00023287,2]
[372503474,1752663165113,-460.0,0.00023287,2]
[372503475,1752663165122,-566.92,0.00023287,2]
[372503476,1752663165132,-460.0,0.00023287,2]
[372503477,1752663165142,-819.52,0.00023287,2]
[372503478,1752663165152,-529.96,0.00023287,2]
[372503479,1752663165161,-460.0,0.00023287,2]
[372503480,1752663165171,-460.0,0.00023287,2]
[372503481,1752663165181,-460.0,0.00023287,2]
[372503482,1752663165190,-509.23,0.00023287,2]
[372503483,1752663165200,-460.0,0.00023287,2]
[372503484,1752663165211,-460.0,0.00023287,2]
[372503485,1752663165222,-732.88,0.00023287,2]
[372503486,1752663165232,-992.29,0.00023287,2]
[372503487,1752663165242,-1012.49,0.00023287,2]
[372503488,1752663165252,-518.81,0.00023287,2]
[372503489,1752663165263,-460.0,0.00023287,2]
[372503490,1752663165272,-460.0,0.00023287,2]
[372503491,1752663165281,-1830.19,0.00023287,2]
[372503492,1752663165292,-1118.14,0.00023287,2]
[372503493,1752663165302,-460.0,0.00023287,2]
[372503494,1752663165311,-698.13,0.00023287,2]
[372503495,1752663165321,-536.27,0.00023287,2]
[372503496,1752663165331,-1149.74,0.00023287,2]
[372503497,1752663165341,-460.0,0.00023287,2]
[372503498,1752663165350,-1545.31,0.00023287,2]
[372503499,1752663165360,-460.0,0.00023287,2]
[372503500,1752663165370,-460.0,0.00023287,2]
[372503501,1752663165382,-502.93851071,0.00023287,2]
[372503502,1752663165392,-726.17,0.00023287,2]
[372503503,1752663165403,-460.0,0.00023287,2]
[372503504,1752663165413,-1284.09,0.00023287,2]
[372503505,1752663165423,-1215.86,0.00023287,2]
[372503506,1752663165433,-501.15,0.00023287,2]
[372503507,1752663165443,-761.3,0.00023287,2]
[372503508,1752663165453,-460.0,0.00023287,2]
[372503509,1752663165463,-460.0,0.00023287,2]
[372503510,1752663165575,-639.95,0.00023287,2]
[372503511,1752663165587,-553.01358607,0.00023287,2]
[372503512,1752663165598,-645.67,0.00023287,2]
[372503513,1752663165607,-1102.51,0.00023287,2]
[372503514,1752663165617,-482.63,0.00023287,2]
[372503515,1752663165627,-460.0,0.00023287,2]
[372503516,1752663165637,-555.69,0.00023287,2]
[372503517,1752663165647,-486.85,0.00023287,2]
[372503518,1752663165657,-460.0,0.00023287,2]
[372503519,1752663165667,-460.0,0.00023287,2]
[372503520,1752663165677,-772.4,0.00023287,2]
[372503521,1752663165687,-1307.09,0.00023287,2]
[372503522,1752663165696,-782.15,0.00023287,2]
[372503523,1752663165706,-966.62,0.00023287,2]
[372503524,1752663165715,-752.28,0.00023287,2]
[372503525,1752663165724,-563.43,0.00023287,2]
[372503526,1752663165734,-460.0,0.00023287,2]
[372503527,1752663165744,-1360.67,0.00023287,2]
[372503528,1752663165753,-839.82,0.00023287,2]
[372503529,1752663165763,-473.28,0.00023287,2]
[372503530,1752663165772,-460.0,0.00023287,2]
[372503531,1752663165781,-691.75,0.00023287,2]
[372503532,1752663165790,-460.0,0.00023287,2]
[372503533,1752663165800,-517.48,0.00023287,2]
[372503534,1752663165810,-517.7,0.00023287,2]
[372503535,1752663165819,-1030.19,0.00023287,2]
[372503536,1752663165829,-1612.9,0.00023287,2]
[372503537,1752663165838,-497.86,0.00023287,2]
[372503538,1752663165848,-1319.17,0.00023287,2]
[372503539,1752663165858,-1348.58,0.00023287,2]
[372503540,1752663165867,-460.0,0.00023287,2]
[372503541,1752663165876,-876.39,0.00023287,2]
[372503542,1752663165886,-460.0,0.00023287,2]
[372503543,1752663165895,-460.0,0.00023287,2]
[372503544,1752663165905,-521.22,0.00023287,2]
[372503545,1752663165915,-900.25,0.00023287,2]
[372503546,1752663165926,-460.0,0.00023287,2]
[372503547,1752663165936,-794.42,0.00023287,2]
[372503548,1752663165946,-460.0,0.00023287,2]
[372503549,1752663165957,-460.0,0.00023287,2]
[372503550,1752663165966,-460.0,0.00023287,2]
[372503551,1752663165977,-460.0,0.00023287,2]
[372503552,1752663165987,-671.7,0.00023287,2]
[372503553,1752663165997,-1426.38,0.00023287,2]
[372503554,1752663166007,-617.3,0.00023287,2]
[372503555,1752663166016,-460.0,0.00023287,2]
[372503556,1752663166026,-460.0,0.00023287,2]
[372503557,1752663166036,-3492.16,0.00023287,2]
[372503558,1752663166045,-960.48,0.00023287,2]
[372503559,1752663166055,-460.0,0.00023287,2]
[372503560,1752663166065,-697.02,0.00023287,2]
[372503561,1752663166075,-859.04,0.00023287,2]
[372503562,1752663166086,-460.0,0.00023287,2]
[372503563,1752663166096,-460.0,0.00023287,2]
[372503564,1752663166106,-578.96,0.00023287,2]
[372503565,1752663166115,-460.0,0.00023287,2]
[372503566,1752663166126,-737.1,0.00023287,2]
[372503567,1752663166135,-3159.42,0.00023287,2]
[372503568,1752663166145,-480.69,0.00023287,2]
[372503569,1752663166156,-658.34,0.00023287,2]
[372503570,1752663166165,-1247.6,0.00023287,2]
[372503571,1752663166175,-460.0,0.00023287,2]
[372503572,1752663166186,-460.0,0.00023287,2]
[372503573,1752663166195,-460.0,0.00023287,2]
[372503574,1752663166205,-1704.14,0.00023287,2]
[372503575,1752663166216,-889.84,0.00023287,2]
[372503576,1752663166226,-460.0,0.00023287,2]
[372503577,1752663166235,-460.0,0.00023287,2]
[372503578,1752663166245,-980.18,0.00023287,2]
[372503579,1752663166255,-864.4,0.00023287,2]
[372503580,1752663166266,-460.0,0.00023287,2]
[372503581,1752663166276,-460.0,0.00023287,2]
[372503582,1752663166288,-1337.4,0.00023287,2]
[372503583,1752663166298,-460.0,0.00023287,2]
[372503584,1752663166309,-538.85,0.00023287,2]
[372503585,1752663166319,-460.0,0.00023287,2]
[372503586,1752663166329,-460.0,0.00023287,2]
[372503587,1752663166339,-439.19,0.00023287,2]
[372503588,1752663166349,-770.68,0.00023287,2]
[372503589,1752663166358,-1191.07,0.00023287,2]
[372503590,1752663166368,-460.0,0.00023287,2]
[372503591,1752663166378,-1520.94,0.00023287,2]
[372503592,1752663166387,-460.0,0.00023287,2]
[372503593,1752663166397,-554.47,0.00023287,2]
[372503594,1752663166407,-460.0,0.00023287,2]
[372503595,1752663166416,-575.57,0.00023287,2]
[372503596,1752663166427,-614.94,0.00023287,2]
[372503597,1752663166437,-508.9,0.00023287,2]
[372503598,1752663166447,-460.0,0.00023287,2]
[372503599,1752663166457,-2763.38,0.00023287,2]
[372503600,1752663166466,-508.1,0.00023287,2]
[372503601,1752663166476,-1649.66,0.00023287,2]
[372503602,1752663166486,-1198.93,0.00023287,2]
[372503603,1752663166496,-460.0,0.00023287,2]
[372503604,1752663166505,-1580.32,0.00023287,2]
[372503605,1752663166515,-1021.74,0.00023287,2]
[372503606,1752663166525,-460.0,0.00023287,2]
[372503607,1752663166535,-2741.41,0.00023287,2]
[372503608,1752663166545,-460.0,0.00023287,2]
[372503609,1752663166556,-1900.49,0.00023287,2]
[372503610,1752663166566,-3441.76,0.00023287,2]
[372503611,1752663166576,-1705.39,0.00023287,2]
[372503612,1752663166586,-504.67,0.00023287,2]
[372503613,1752663166596,-2750.23,0.00023287,2]
[372503614,1752663166606,-460.0,0.00023287,2]
[372503615,1752663166616,-962.35,0.00023287,2]
[372503616,1752663166626,-537.19374049,0.00023287,2]
[372503617,1752663166636,-460.0,0.00023287,2]
[372503618,1752663166646,-478.83,0.00023287,2]
[372503619,1752663166655,-525.54,0.00023287,2]
[372503620,1752663166665,-1147.29,0.00023287,2]
[372503621,1752663166675,-737.1,0.00023287,2]
[372503622,1752663166685,-460.0,0.00023287,2]
[372503623,1752663166694,-1861.51,0.00023287,2]
[372503624,1752663166704,-1161.16,0.00023287,2]
[372503625,1752663166713,-464.05,0.00023287,2]
[372503626,1752663166723,-1367.94,0.00023287,2]
[372503627,1752663166732,-515.0,0.00023287,2]
[372503628,1752663166742,-796.7,0.00023287,2]
[372503629,1752663166753,-509.86,0.00023287,2]
[372503630,1752663166762,-1541.82,0.00023287,2]
[372503631,1752663166773,-2639.83,0.00023287,2]
[372503632,1752663166783,-1604.58,0.00023287,2]
[372503633,1752663166793,-2045.95,0.00023287,2]
[372503634,1752663166803,-720.83,0.00023287,2]
[372503635,1752663166812,-995.1,0.00023287,2]
[372503636,1752663166822,-556.0,0.00023287,2]
[372503637,1752663166832,-2767.68,0.00023287,2]
[372503638,1752663166841,-460.0,0.00023287,2]
[372503639,1752663166851,-474.83,0.00023287,2]
[372503640,1752663166861,-465.39,0.00023287,2]
[372503641,1752663166870,-181.53766807,0.00023287,2]
[372503642,1752663166881,-460.0,0.00023287,2]
[372503643,1752663166891,-597.28,0.00023287,2]
[372503644,1752663166901,-1174.38,0.00023287,2]
[372503645,1752663166912,-469.93,0.00023287,2]
[372503646,1752663166922,-579.42,0.00023287,2]
[372503647,1752663166933,-1146.77,0.00023287,2]
[372503648,1752663166942,-2023.63,0.00023287,2]
[372503649,1752663166952,-627.96,0.00023287,2]
[372503650,1752663166962,-2253.55,0.00023287,2]
[372503651,1752663166973,-597.05,0.00023287,2]
[372503652,1752663166983,-950.28,0.00023287,2]
[372503653,1752663166993,-692.22,0.00023287,2]
[372503654,1752663167003,-597.04,0.00023287,2]
[372503655,1752663167014,-460.0,0.00023287,2]
[372503656,1752663167025,-460.0,0.00023287,2]
[372503657,1752663167035,-934.91,0.00023287,2]
[372503658,1752663167046,-1367.21,0.00023287,2]
[372503659,1752663167057,-2518.02,0.00023287,2]
[372503660,1752663167068,-1954.32,0.00023287,2]
[372503661,1752663167078,-460.0,0.00023287,2]
[372503662,1752663167088,-1051.45,0.00023287,2]
[372503663,1752663167099,-460.0,0.00023287,2]
[372503664,1752663167109,-1320.19,0.00023287,2]
[372503665,1752663167118,-460.0,0.00023287,2]
[372503666,1752663167128,-460.0,0.00023287,2]
[372503667,1752663167137,-527.48,0.00023287,2]
[372503668,1752663167147,-3449.55,0.00023287,2]
[372503669,1752663167157,-850.19,0.00023287,2]
[372503670,1752663167169,-460.0,0.00023287,2]
[372503671,1752663167178,-3110.28,0.00023287,2]
[372503672,1752663167188,-802.2,0.00023287,2]
[372503673,1752663167198,-940.26,0.00023287,2]
[372503674,1752663167209,-2098.67,0.00023287,2]
[372503675,1752663167219,-460.0,0.00023287,2]
[372503676,1752663167228,-689.36,0.00023287,2]
[372503677,1752663167238,-2979.04,0.00023287,2]
[372503678,1752663167249,-460.0,0.00023287,2]
[372503679,1752663167260,-752.81,0.00023287,2]
[372503680,1752663167269,-945.82,0.00023287,2]
[372503681,1752663167278,-1127.17,0.00023287,2]
[372503682,1752663167289,-461.28,0.00023287,2]
[372503683,1752663167299,-486.62,0.00023287,2]
[372503684,1752663167308,-460.0,0.00023287,2]
[372503685,1752663167317,-1080.52,0.00023287,2]
[372503686,1752663167327,-460.0,0.00023287,2]
[372503687,1752663167336,-460.0,0.00023287,2]
[372503688,1752663167346,-3049.9,0.00023287,2]
[372503689,1752663167356,-1920.84,0.00023287,2]
[372503690,1752663167365,-1266.56,0.00023287,2]
[372503691,1752663167375,-547.91,0.00023287,2]
[372503692,1752663167384,-460.0,0.00023287,2]
[372503693,1752663167393,-460.0,0.00023287,2]
[372503694,1752663167403,-1363.97,0.00023287,2]
[372503695,1752663167412,-460.0,0.00023287,2]
[372503696,1752663167422,-963.24,0.00023287,2]
[372503697,1752663167432,-1157.14,0.00023287,2]
[372503698,1752663167442,-2306.11,0.00023287,2]
[372503699,1752663167453,-1152.83,0.00023287,2]
[372503700,1752663167462,-526.48,0.00023287,2]
[372503701,1752663167472,-2280.97,0.00023287,2]
[372503702,1752663167482,-1495.62,0.00023287,2]
[372503703,1752663167492,-658.25,0.00023287,2]
[372503704,1752663167501,-2249.33,0.00023287,2]
[372503705,1752663167511,-902.72,0.00023287,2]
[372503706,1752663167522,-498.87,0.00023287,2]
[372503707,1752663167531,-1741.37,0.00023287,2]
[372503708,1752663167541,-460.0,0.00023287,2]
[372503709,1752663167551,-515.22,0.00023287,2]
[372503710,1752663167561,-337.2174799,0.00023287,2]
[372503711,1752663167571,-1256.01,0.00023287,2]
[372503712,1752663167581,-748.36,0.00023287,2]
[372503713,1752663167590,-730.45,0.00023287,2]
[372503714,1752663167600,-889.78,0.00023287,2]
[372503715,1752663167611,-1213.76,0.00023287,2]
[372503716,1752663167620,-460.0,0.00023287,2]
[372503717,1752663167630,-976.13,0.00023287,2]
[372503718,1752663167640,-595.0,0.00023287,2]
[372503719,1752663167650,-1393.74,0.00023287,2]
[372503720,1752663167661,-1803.46,0.00023287,2]
[372503721,1752663167671,-460.0,0.00023287,2]
[372503722,1752663167680,-460.0,0.00023287,2]
[372503723,1752663167690,-2622.24,0.00023287,2]
[372503724,1752663167700,-460.0,0.00023287,2]
[372503725,1752663167711,-476.01,0.00023287,2]
[372503726,1752663167720,-2059.43,0.00023287,2]
[372503727,1752663167730,-2566.84,0.00023287,2]
[372503728,1752663167740,-567.34,0.00023287,2]
[372503729,1752663167750,-2711.83,0.00023287,2]
[372503730,1752663167760,-460.0,0.00023287,2]
[372503731,1752663167770,-629.46,0.00023287,2]
[372503732,1752663167779,-1222.0,0.00023287,2]
[372503733,1752663167789,-242.45363824,0.00023287,2]
[372503734,1752663167798,-1237.1,0.00023287,2]